fUST/lending_fUST_20240805
["ID","MTS","AMOUNT","RATE_DAILY","PERIOD"]
[334203703,1722838241588,-385.6,0.000245,31]
[334203704,1722838241597,-385.6,0.000245,31]
[334203705,1722838241607,-385.6,0.000245,31]
[334203706,1722838241617,-385.6,0.000245,31]
[334203707,1722838241631,-385.6,0.000245,31]
[334203708,1722838241641,-385.6,0.000245,31]
[334203709,1722838241650,-385.6,0.000245,31]
[334203710,1722838241660,-385.6,0.000245,31]
[334203711,1722838241670,-385.6,0.000245,31]
[334203712,1722838241680,-385.6,0.000245,31]
[334203713,1722838241690,-385.6,0.000245,31]
[334203714,1722838241699,-385.6,0.000245,31]
[334203715,1722838241709,-385.6,0.000245,31]
[334203716,1722838241719,-385.6,0.000245,31]
[334203717,1722838241729,-200.0,0.00024658,15]
[334203718,1722838241739,-380.0,0.00024658,2]
[334203719,1722838241752,-1411.0,0.00024747,2]
[334203720,1722838241763,-628.72270092,0.000249,2]
[334203721,1722838241772,-297.50797742,0.000249,2]
[334203722,1722838241782,-200.0,0.00024973,2]
[334203723,1722838241791,-22738.8403901,0.0002499,3]
[334203724,1722838241800,-81422.16744513,0.0002499,3]
[334203725,1722838241815,-2803.53849755,0.0002499,3]
[334203726,1722838241827,-6729.65561782,0.0002499,3]
[334203727,1722838241837,-4092.24438219,0.00025,5]
[334203728,1722838241849,-1030.82,0.00025,5]
[334203739,1722838242083,-1340.21305913,9.899e-05,2]
[334203741,1722838242093,-277.18370616,0.00019155,2]
[334203743,1722838242102,-1962.42104594,0.00023651,2]
[334203745,1722838242112,-17827.74777902,0.00025,5]
[334203747,1722838242122,-363.76476106,0.00025,2]
[334203748,1722838242140,-772.25823972,0.00025,2]
[334203750,1722838242150,-154.79103211,0.00025,2]
[334203751,1722838242159,-155.59865243,0.00025,2]
[334203752,1722838242170,-23187.37998412,0.00025,30]
[334203754,1722838242180,-154.83742071,0.00025,15]
[334203762,1722838242264,-1669.01055043,0.00025,2]
[334203764,1722838242274,-220.67854838,0.00025,2]
[334203765,1722838242285,-1625.81763535,0.00025,2]
[334203767,1722838242295,-1751.39413781,0.00025,2]
[334203768,1722838242305,-126092.86284783,0.00025,7]
[334203769,1722838242315,-15881.80961739,0.00025,2]
[334203770,1722838242325,-9678.40661042,0.00025,2]
[334203771,1722838242335,-8024.99664677,0.00025,2]
[334203772,1722838242345,-189.82749556,0.00025,7]
[334203773,1722838242354,-2255.71315981,0.00025,2]
[334203774,1722838242363,-151.276711,0.00025,7]
[334203775,1722838242372,-151.0,0.00025,7]
[334203776,1722838242389,-579.68,0.00025,7]
[334203777,1722838242398,-151.0,0.00025,7]
[334203778,1722838242408,-151.0,0.00025,7]
[334203779,1722838242419,-151.172785,0.00025,7]
[334203780,1722838242429,-151.0,0.00025,7]
[334203781,1722838242441,-151.0,0.00025,7]
[334203782,1722838242452,-849.616554,0.00025,7]
[334203783,1722838242462,-849.616554,0.00025,7]
[334203784,1722838242472,-160.520545,0.00025,7]
[334203785,1722838242483,-151.0,0.00025,2]
[334203786,1722838242494,-151.0,0.00025,7]
[334203787,1722838242504,-457.975305,0.00025,7]
[334203788,1722838242514,-457.975305,0.00025,7]
[334203789,1722838242525,-151.0,0.00025,7]
[334203790,1722838242536,-429.274796,0.00025,7]
[334203791,1722838242547,-151.0,0.00025,7]
[334203792,1722838242557,-429.274796,0.00025,7]
[334203793,1722838242568,-266.012406,0.00025,7]
[334203794,1722838242579,-266.012406,0.00025,7]
[334203795,1722838242589,-151.0,0.00025,7]
[334203796,1722838242600,-167.031489,0.00025,7]
[334203797,1722838242611,-936.990504,0.00025,7]
[334203798,1722838242621,-936.990504,0.00025,7]
[334203799,1722838242638,-151.0,0.00025,7]
[334203800,1722838242648,-631.448169,0.00025,7]
[334203801,1722838242657,-151.0,0.00025,7]
[334203802,1722838242667,-631.448169,0.00025,7]
[334203803,1722838242676,-151.0,0.00025,7]
[334203804,1722838242685,-151.0,0.00025,7]
[334203805,1722838242694,-341.027487,0.00025,7]
[334203806,1722838242704,-151.0,0.00025,7]
[334203807,1722838242714,-219.25772,0.00025,7]
[334203808,1722838242724,-341.027487,0.00025,7]
[334203809,1722838242733,-219.25772,0.00025,7]
[334203810,1722838242743,-12383.43,0.00025,14]
[334203811,1722838242753,-151.0,0.00025,7]
[334203812,1722838242763,-151.0,0.00025,7]
[334203814,1722838242773,-151.0,0.00025,7]
[334203816,1722838242782,-151.0,0.00025,7]
[334203817,1722838242792,-187.4,0.00025097,5]
[334203819,1722838242801,-151.0,0.00025097,5]
[334203820,1722838242811,-385.6,0.000255,31]
[334203822,1722838242820,-385.6,0.000255,31]
[334203824,1722838242829,-385.6,0.000255,31]
[334203825,1722838242838,-385.6,0.000255,31]
[334203827,1722838242847,-385.6,0.000255,31]
[334203828,1722838242856,-385.6,0.000255,31]
[334203829,1722838242866,-385.6,0.000255,31]
[334203830,1722838242878,-385.6,0.000255,31]
[334203831,1722838242889,-385.6,0.000255,31]
[334203832,1722838242898,-385.6,0.000255,31]
[334203833,1722838242908,-385.6,0.000255,31]
[334203834,1722838242921,-385.6,0.000255,31]
[334203835,1722838242931,-385.6,0.000255,31]
[334203836,1722838242941,-385.6,0.000255,31]
[334203837,1722838242952,-385.6,0.000255,31]
[334203838,1722838242962,-385.6,0.000255,31]
[334203839,1722838242972,-385.6,0.000255,31]
[334203840,1722838242983,-385.6,0.000255,31]
[334203841,1722838242993,-385.6,0.000255,31]
[334203842,1722838243003,-385.6,0.000255,31]
[334203843,1722838243013,-150.112233,0.00026,8]
[334203844,1722838243023,-150.0,0.00026146,2]
[334203846,1722838243032,-150.0,0.00026146,2]
[334203848,1722838243042,-484.354,0.00026146,2]
[334203850,1722838243052,-13733.11930024,0.00026291,3]
[334203907,1722838244357,-500.0,0.00013699,2]
[334203908,1722838244367,-500.0,0.00013699,2]
[334203909,1722838244383,-500.0,0.00013699,2]
[334203910,1722838244393,-512.64978813,0.00013699,2]
[334203911,1722838244403,-500.0,0.00013699,2]
[334203912,1722838244413,-500.0,0.00013699,2]
[334203913,1722838244423,-500.0,0.00013699,2]
[334203914,1722838244433,-183.12142007,0.00019999,2]
[334203915,1722838244445,-1691.89437031,0.00022219,2]
[334203916,1722838244456,-1507.032341,0.00025,7]
[334203917,1722838244466,-9005.72108986,0.00026291,3]
[334203918,1722838244476,-400.0,0.00026342,2]
[334203919,1722838244487,-190.163571,0.00026388,2]
[334203920,1722838244497,-154.80649189,0.00026412,2]
[334203921,1722838244507,-385.6,0.000266,31]
[334203922,1722838244516,-385.6,0.000266,31]
[334203923,1722838244525,-385.6,0.000266,31]
[334203924,1722838244535,-385.6,0.000266,31]
[334203925,1722838244545,-385.6,0.000266,31]
[334203926,1722838244555,-385.6,0.000266,31]
[334203929,1722838244642,-385.6,0.000266,31]
[334203930,1722838244655,-385.6,0.000266,31]
[334203932,1722838244664,-385.6,0.000266,31]
[334203934,1722838244673,-385.6,0.000266,31]
[334203936,1722838244682,-385.6,0.000266,31]
[334203937,1722838244691,-385.6,0.000266,31]
[334203939,1722838244703,-385.6,0.000266,31]
[334203941,1722838244713,-385.6,0.000266,31]
[334203942,1722838244722,-385.6,0.000266,31]
[334203943,1722838244731,-385.6,0.000266,31]
[334203944,1722838244740,-385.6,0.000266,31]
[334203945,1722838244751,-385.6,0.000266,31]
[334203946,1722838244763,-385.6,0.000266,31]
[334203947,1722838244772,-385.6,0.000266,31]
[334203948,1722838244781,-150.0,0.0002663,2]
[334203949,1722838244790,-635.015058,0.00026979,2]
[334203950,1722838244800,-267.518862,0.00027167,2]
[334203951,1722838244810,-187.4,0.00027262,6]
[334203952,1722838244818,-151.0,0.00027262,6]
[334203953,1722838244828,-12383.43,0.000273,14]
[334203954,1722838244837,-4694.40576,0.00027397,120]
[334203955,1722838244847,-994.04,0.000274,14]
[334203956,1722838244857,-150.0,0.00027499,2]
[334203957,1722838244866,-579.68,0.000275,7]
[334203958,1722838244880,-150.112233,0.000275,9]
[334203959,1722838244889,-1411.0,0.00027747,2]
[334203960,1722838244898,-628.72270083,0.00027967,2]
[334203961,1722838244908,-600.0,0.0002816,2]
[334203962,1722838244917,-600.0,0.00028346,2]
[334203963,1722838244926,-150.0,0.00028499,2]
[334203964,1722838244936,-1000.0,0.000286,2]
[334203965,1722838244945,-1000.0,0.000291,2]
[334203966,1722838244954,-153.93598965,0.00029168,16]
[334203967,1722838244963,-150.0,0.00029375,14]
[334203968,1722838244973,-150.0,0.00029375,14]
[334203969,1722838244982,-154.0,0.00029375,14]
[334203970,1722838244991,-187.4,0.00029428,15]
[334203971,1722838245001,-151.0,0.00029428,15]
[334203972,1722838245010,-150.0,0.00029499,2]
[334203973,1722838245019,-151.0,0.0003,120]
[334203974,1722838245029,-151.0,0.0003,120]
[334203975,1722838245038,-170.0,0.0003,2]
[334203976,1722838245048,-264.0,0.0003,2]
[334203977,1722838245057,-200.0,0.00030353,2]
[334203978,1722838245066,-170.0,0.00030411,2]
[334203979,1722838245076,-150.0,0.00030499,2]
[334203980,1722838245085,-800.0,0.00030687,2]
[334203981,1722838245094,-150.112233,0.00031,8]
[334203982,1722838245103,-12383.43,0.00031,14]
[334203983,1722838245113,-628.72270083,0.00031034,2]
[334203984,1722838245122,-151.0,0.00031205,120]
[334203985,1722838245135,-150.0,0.00031499,2]
[334203986,1722838245145,-187.4,0.00031594,15]
[334203987,1722838245154,-151.0,0.00031594,15]
[334203988,1722838245166,-170.0,0.00031644,2]
[334203989,1722838245175,-579.68,0.000317,7]
[334203990,1722838245184,-212.884263,0.0003179,7]
[334203991,1722838245193,-151.894316,0.0003179,7]
[334203992,1722838245202,-151.0,0.0003179,7]
[334203993,1722838245212,-151.0,0.0003179,7]
[334203994,1722838245221,-849.616554,0.0003179,7]
[334203995,1722838245231,-849.616554,0.0003179,7]
[334203996,1722838245242,-160.520545,0.0003179,7]
[334203997,1722838245253,-157.048486,0.0003179,2]
[334203998,1722838245262,-151.0,0.0003179,7]
[334203999,1722838245271,-457.975305,0.0003179,7]
[334204000,1722838245280,-457.975305,0.0003179,7]
[334204001,1722838245289,-266.012406,0.0003179,7]
[334204002,1722838245298,-266.012406,0.0003179,7]
[334204003,1722838245307,-151.0,0.0003179,7]
[334204004,1722838245316,-22738.8403901,0.0003179,4]
[334204005,1722838245326,-151.0,0.0003179,7]
[334204006,1722838245335,-151.0,0.0003179,7]
[334204007,1722838245344,-994.04,0.000318,14]
[334204008,1722838245354,-151.0,0.000318,7]
[334204009,1722838245364,-429.274796,0.000318,7]
[334204010,1722838245373,-151.0,0.000318,7]
[334204011,1722838245387,-429.274796,0.000318,7]
[334204012,1722838245396,-936.990504,0.000318,7]
[334204013,1722838245405,-936.990504,0.000318,7]
[334204014,1722838245415,-151.0,0.000318,7]
[334204015,1722838245424,-631.448169,0.000318,7]
[334204016,1722838245433,-151.0,0.000318,7]
[334204017,1722838245442,-631.448169,0.000318,7]
[334204018,1722838245452,-151.0,0.000318,7]
[334204019,1722838245462,-341.027487,0.000318,7]
[334204020,1722838245472,-151.0,0.000318,7]
[334204021,1722838245481,-219.25772,0.000318,7]
[334204022,1722838245491,-341.027487,0.000318,7]
[334204023,1722838245500,-219.25772,0.000318,7]
[334204024,1722838245510,-150.112233,0.000318,10]
[334204025,1722838245519,-151.0,0.000318,7]
[334204026,1722838245528,-151.0,0.000318,7]
[334204027,1722838245537,-4694.40576,0.00031963,120]
[334204028,1722838245547,-403.612664,0.00031964,7]
[334204029,1722838245556,-403.612664,0.00031964,7]
[334204030,1722838245565,-151.0,0.00032411,120]
[334204031,1722838245575,-151.0,0.0003249,7]
[334204032,1722838245585,-151.0,0.0003249,7]
[334204033,1722838245594,-22738.8403901,0.0003249,4]
[334204034,1722838245603,-150.0,0.00032499,2]
[334204035,1722838245612,-150.0,0.00032499,2]
[334204036,1722838245621,-27011.6578633,0.000325,60]
[334204037,1722838245634,-250.116329,0.000325,7]
[334204038,1722838245643,-151.0,0.000325,7]
[334204039,1722838245717,-406.91155932,0.00032605,3]
[334204040,1722838245727,-154.77557542,0.00032605,4]
[334204041,1722838245737,-155.0,0.0003265,29]
[334204042,1722838245747,-151.0,0.00033151,120]
[334204043,1722838245758,-172.0,0.00033226,2]
[334204044,1722838245768,-1000.0,0.00033278,2]
[334204045,1722838245778,-153.0,0.00033282,2]
[334204046,1722838245788,-153.0,0.00033282,2]
[334204047,1722838245798,-153.0,0.00033282,2]
[334204048,1722838245809,-153.0,0.00033282,2]
[334204049,1722838245818,-153.8712611,0.00033282,2]
[334204050,1722838245828,-200.0,0.00033492,120]
[334204051,1722838245838,-150.0,0.00033499,2]
[334204052,1722838245848,-150.0,0.00033499,2]
[334204053,1722838245860,-254.5457557,0.00033556,2]
[334204054,1722838245870,-153.0,0.00033556,2]
[334204055,1722838245891,-153.0,0.00033556,2]
[334204057,1722838245901,-153.2214191,0.00033556,2]
[334204059,1722838245911,-153.0,0.00033556,2]
[334204061,1722838245921,-153.0,0.00033556,2]
[334204063,1722838245930,-190.163571,0.00033598,2]
[334204065,1722838245940,-151.0,0.00033616,120]
[334204067,1722838245949,-267.518862,0.00033626,2]
[334204069,1722838245959,-12383.43,0.000337,14]
[334204071,1722838245968,-187.4,0.0003376,15]
[334204073,1722838245978,-151.0,0.0003376,15]
[334204075,1722838245988,-628.72270083,0.00034101,2]
[334204076,1722838245999,-200.0,0.0003428,5]
[334204077,1722838246008,-153.0,0.00034378,2]
[334204078,1722838246018,-306.9674035,0.00034378,2]
[334204079,1722838246027,-306.0,0.0003445,2]
[334204080,1722838246037,-294.2886399,0.0003445,2]
[334204081,1722838246047,-427.6675066,0.0003445,2]
[334204082,1722838246057,-294.2886399,0.0003445,2]
[334204083,1722838246066,-208.4123815,0.0003445,2]
[334204084,1722838246076,-150.0,0.00034499,2]
[334204085,1722838246085,-579.68,0.000345,30]
[334204086,1722838246095,-157.0,0.0003471,33]
[334204087,1722838246104,-151.0,0.00034822,120]
[334204088,1722838246114,-994.04,0.000352,14]
[334204089,1722838246125,-150.0,0.00035499,2]
[334204090,1722838246143,-154.31048912,0.000356,90]
[334204091,1722838246154,-151.0,0.00035616,7]
[334204092,1722838246164,-151.0,0.00035616,7]
[334204093,1722838246174,-151.0,0.00035616,7]
[334204094,1722838246184,-151.0,0.00035616,7]
[334204095,1722838246193,-151.0,0.00035616,7]
[334204096,1722838246202,-151.0,0.00035616,7]
[334204097,1722838246216,-151.0,0.00035616,7]
[334204098,1722838246236,-849.616554,0.00035616,7]
[334204099,1722838246253,-849.616554,0.00035616,7]
[334204100,1722838246273,-160.520545,0.00035616,7]
[334204101,1722838246295,-160.520545,0.00035616,7]
[334204102,1722838246312,-160.520545,0.00035616,7]
[334204103,1722838246331,-151.0,0.00035616,7]
[334204104,1722838246346,-151.0,0.00035616,7]
[334204105,1722838246364,-457.975305,0.00035616,7]
[334204106,1722838246387,-457.975305,0.00035616,7]
[334204107,1722838246403,-457.975305,0.00035616,7]
[334204108,1722838246418,-457.975305,0.00035616,7]
[334204109,1722838246434,-151.0,0.00035616,7]
[334204110,1722838246451,-429.274796,0.00035616,7]
[334204111,1722838246467,-245.901718,0.00035616,7]
[334204112,1722838246482,-429.274796,0.00035616,7]
[334204113,1722838246497,-266.012406,0.00035616,7]
[334204114,1722838246513,-266.012406,0.00035616,7]
[334204115,1722838246528,-266.012406,0.00035616,7]
[334204116,1722838246544,-266.012406,0.00035616,7]
[334204117,1722838246560,-151.0,0.00035616,7]
[334204118,1722838246576,-151.0,0.00035616,7]
[334204119,1722838246590,-936.990504,0.00035616,7]
[334204120,1722838246606,-936.990504,0.00035616,7]
[334204121,1722838246621,-936.990504,0.00035616,7]
[334204122,1722838246640,-936.990504,0.00035616,7]
[334204123,1722838246657,-151.684119,0.00035616,7]
[334204124,1722838246673,-631.448169,0.00035616,7]
[334204125,1722838246689,-631.448169,0.00035616,7]
[334204126,1722838246704,-151.0,0.00035616,7]
[334204127,1722838246720,-151.0,0.00035616,7]
[334204128,1722838246735,-631.448169,0.00035616,7]
[334204129,1722838246750,-631.448169,0.00035616,7]
[334204130,1722838246765,-151.0,0.00035616,7]
[334204131,1722838246781,-151.0,0.00035616,7]
[334204132,1722838246795,-341.027487,0.00035616,7]
[334204133,1722838246810,-341.027487,0.00035616,7]
[334204134,1722838246825,-151.0,0.00035616,7]
[334204135,1722838246840,-151.0,0.00035616,7]
[334204136,1722838246857,-219.25772,0.00035616,7]
[334204137,1722838246871,-219.25772,0.00035616,7]
[334204138,1722838246892,-341.027487,0.00035616,7]
[334204139,1722838246910,-341.027487,0.00035616,7]
[334204140,1722838246926,-219.25772,0.00035616,7]
[334204141,1722838246941,-219.25772,0.00035616,7]
[334204142,1722838246955,-199.828054,0.00035616,7]
[334204143,1722838246970,-403.612664,0.00035616,7]
[334204144,1722838246984,-403.612664,0.00035616,7]
[334204145,1722838247090,-151.0,0.00035616,7]
[334204146,1722838247107,-151.0,0.00035616,7]
[334204147,1722838247117,-151.0,0.00035616,7]
[334204148,1722838247134,-151.0,0.00035616,7]
[334204149,1722838247143,-88477.87601444,0.00035616,5]
[334204150,1722838247156,-47792.91,0.00035616,3]
[334204151,1722838247166,-206.79531687,0.00035757,7]
[334204152,1722838247177,-920.2333607,0.00035757,2]
[334204153,1722838247186,-187.4,0.00035926,15]
[334204154,1722838247195,-151.0,0.00035926,15]
[334204155,1722838247205,-151.0,0.00036027,120]
[334204156,1722838247216,-1200.0,0.00036073,2]
[334204157,1722838247227,-12383.43,0.000361,14]
[334204158,1722838247237,-151.0,0.00036301,120]
[334204159,1722838247247,-150.0,0.00036499,2]
[334204160,1722838247256,-4694.40576,0.0003653,120]
[334204161,1722838247267,-151.0,0.0003653,7]
[334204162,1722838247276,-457.975305,0.0003653,7]
[334204163,1722838247286,-457.975305,0.0003653,7]
[334204164,1722838247294,-266.012406,0.0003653,7]
[334204165,1722838247303,-266.012406,0.0003653,7]
[334204166,1722838247313,-151.0,0.0003653,7]
[334204167,1722838247322,-579.68,0.000366,30]
[334204168,1722838247331,-200.0,0.00036626,2]
[334204169,1722838247340,-527.0,0.00037,30]
[334204170,1722838247350,-1123.37719122,0.0003707,31]
[334204171,1722838247359,-628.72270083,0.00037168,2]
[334204172,1722838247368,-151.0,0.00037233,120]
[334204173,1722838247382,-150.0,0.00037499,2]
[334204174,1722838247392,-170.0,0.00037973,2]
[334204175,1722838247402,-187.4,0.00038091,15]
[334204176,1722838247412,-151.0,0.00038091,15]
[334204177,1722838247422,-151.0,0.00038438,120]
[334204178,1722838247432,-200.0,0.00038465,120]
[334204179,1722838247441,-150.0,0.00038499,2]
[334204180,1722838247452,-12383.43,0.000385,14]
[334204181,1722838247462,-150.0,0.00039,30]
[334204182,1722838247472,-300.0,0.00039,120]
[334204183,1722838247482,-2210.0,0.00039,120]
[334204184,1722838247492,-1400.0,0.00039042,2]
[334204185,1722838247501,-151.0,0.00039452,120]
[334204186,1722838247511,-150.0,0.00039499,2]
[334204187,1722838247521,-151.0,0.00039644,120]
[334204188,1722838247530,-170.0,0.00039871,14]
[334204189,1722838247540,-579.68,0.000399,30]
[334204190,1722838247549,-316.94030723,0.0004,120]
[334204191,1722838247559,-600.29726509,0.0004,4]
[334204192,1722838247568,-4548.79484274,0.0004,120]
[334204193,1722838247578,-150.0,0.0004,30]
[334204194,1722838247588,-2139.73680225,0.0004,120]
[334204195,1722838247597,-200.0,0.0004,120]
[334204196,1722838247606,-3005.0,0.0004,120]
[334204197,1722838247616,-181.69,0.0004,16]
[334204198,1722838247625,-406.08285279,0.0004,120]
[334204199,1722838247640,-59399.06507017,0.0004,10]
[334204200,1722838247651,-151.0,0.0004,14]
[334204201,1722838247661,-151.0,0.0004,14]
[334204202,1722838247670,-151.0,0.0004,14]
[334204203,1722838247681,-151.0,0.0004,14]
[334204204,1722838247692,-151.0,0.0004,14]
[334204205,1722838247701,-849.616554,0.0004,14]
[334204206,1722838247711,-849.616554,0.0004,14]
[334204207,1722838247720,-160.520545,0.0004,14]
[334204208,1722838247730,-160.520545,0.0004,14]
[334204209,1722838247740,-403.612664,0.0004,14]
[334204210,1722838247749,-403.612664,0.0004,14]
[334204211,1722838247760,-267.518862,0.00040086,2]
[334204212,1722838247770,-628.72270083,0.00040234,2]
[334204213,1722838247779,-187.4,0.00040257,15]
[334204214,1722838247789,-151.0,0.00040257,15]
[334204216,1722838247798,-528.38,0.00040368,2]
[334204218,1722838247808,-150.0,0.00040499,2]
[334204220,1722838247818,-190.163571,0.00040808,2]
[334204221,1722838247828,-151.0,0.00040849,120]
[334204222,1722838247837,-200.0,0.00041,30]
[334204223,1722838247847,-500.0,0.00041,120]
[334204224,1722838247856,-152.0,0.00041041,31]
[334204225,1722838247866,-152.0,0.00041041,31]
[334204227,1722838247875,-160.0,0.00041094,30]
[334204229,1722838247892,-160.0,0.00041094,30]
[334204231,1722838247901,-500.0,0.00041095,31]
[334204233,1722838247911,-500.0,0.00041095,31]
[334204234,1722838247920,-500.0,0.00041095,31]
[334204236,1722838247929,-500.0,0.00041095,31]
[334204237,1722838247939,-510.11841272,0.00041095,31]
[334204238,1722838247948,-151.0,0.00041095,14]
[334204239,1722838247957,-151.0,0.00041095,14]
[334204240,1722838247966,-151.0,0.00041095,14]
[334204241,1722838247975,-500.0,0.00041095,31]
[334204242,1722838247984,-310.0,0.00041095,30]
[334204243,1722838247994,-447.862561,0.00041095,30]
[334204244,1722838248003,-309.20430284,0.00041095,31]
[334204245,1722838248013,-280.997137,0.00041095,14]
[334204246,1722838248022,-280.997137,0.00041095,14]
[334204247,1722838248031,-280.997137,0.00041095,14]
[334204248,1722838248040,-280.997137,0.00041095,14]
[334204249,1722838248050,-280.997137,0.00041095,14]
[334204250,1722838248059,-280.997137,0.00041095,14]
[334204251,1722838248068,-500.0,0.00041095,31]
[334204252,1722838248078,-500.0,0.00041095,31]
[334204253,1722838248087,-151.0,0.00041095,14]
[334204254,1722838248097,-151.0,0.00041095,14]
[334204255,1722838248107,-151.0,0.00041095,14]
[334204256,1722838248117,-151.0,0.00041095,14]
[334204257,1722838248132,-151.0,0.00041095,14]
[334204258,1722838248151,-151.0,0.00041095,14]
[334204259,1722838248164,-151.0,0.00041095,14]
[334204260,1722838248173,-500.0,0.00041095,31]
[334204262,1722838248183,-500.0,0.00041095,31]
[334204264,1722838248192,-512.34261777,0.00041095,31]
[334204266,1722838248202,-500.0,0.00041095,31]
[334204267,1722838248212,-151.0,0.00041095,14]
[334204268,1722838248222,-151.0,0.00041095,14]
[334204269,1722838248231,-151.0,0.00041095,14]
[334204270,1722838248240,-151.0,0.00041095,14]
[334204271,1722838248250,-500.0,0.00041095,31]
[334204272,1722838248260,-500.0,0.00041095,31]
[334204273,1722838248269,-500.0,0.00041095,31]
[334204274,1722838248279,-500.0,0.00041095,31]
[334204276,1722838248288,-500.0,0.00041095,31]
[334204278,1722838248298,-501.2883839,0.00041095,31]
[334204279,1722838248308,-500.0,0.00041095,31]
[334204280,1722838248318,-504.58388755,0.00041095,31]
[334204281,1722838248327,-500.0,0.00041095,31]
[334204282,1722838248336,-502.97876009,0.00041095,31]
[334204283,1722838248346,-391.32205049,0.00041095,31]
[334204284,1722838248356,-500.0,0.00041095,31]
[334204285,1722838248366,-500.0,0.00041095,31]
[334204286,1722838248376,-528.57,0.00041095,31]
[334204287,1722838248391,-500.0,0.00041095,31]
[334204288,1722838248401,-500.0,0.00041095,31]
[334204289,1722838248411,-500.0,0.00041095,31]
[334204290,1722838248421,-320.0663664,0.00041095,31]
[334204291,1722838248431,-500.0,0.00041095,31]
[334204292,1722838248440,-500.0,0.00041095,31]
[334204293,1722838248451,-500.0,0.00041095,31]
[334204294,1722838248461,-500.0,0.00041095,31]
[334204295,1722838248471,-500.0,0.00041095,31]
[334204296,1722838248482,-500.0,0.00041095,31]
[334204297,1722838248491,-642.75372144,0.00041095,31]
[334204298,1722838248502,-500.0,0.00041095,31]
[334204299,1722838248511,-500.0,0.00041095,31]
[334204300,1722838248522,-500.0,0.00041095,31]
[334204301,1722838248531,-585.9082358,0.00041095,31]
[334204302,1722838248616,-500.0,0.00041095,31]
[334204303,1722838248626,-500.0,0.00041095,31]
[334204304,1722838248643,-500.0,0.00041095,31]
[334204305,1722838248653,-500.0,0.00041095,31]
[334204306,1722838248662,-500.0,0.00041095,31]
[334204307,1722838248672,-500.0,0.00041095,31]
[334204308,1722838248681,-500.23228575,0.00041095,31]
[334204309,1722838248692,-500.0,0.00041095,31]
[334204310,1722838248702,-500.0,0.00041095,31]
[334204311,1722838248712,-500.0,0.00041095,31]
[334204312,1722838248723,-555.52,0.00041095,31]
[334204313,1722838248733,-500.0,0.00041095,31]
[334204314,1722838248742,-500.0,0.00041095,31]
[334204315,1722838248752,-500.0,0.00041095,31]
[334204316,1722838248760,-500.0,0.00041095,31]
[334204317,1722838248770,-500.0,0.00041095,31]
[334204318,1722838248779,-500.0,0.00041095,31]
[334204319,1722838248789,-500.0,0.00041095,31]
[334204320,1722838248798,-500.0,0.00041095,31]
[334204321,1722838248808,-500.0,0.00041095,31]
[334204322,1722838248817,-500.0,0.00041095,31]